Cogmind - Beta 13 @@@ ROGUE MODE // 2024.04.04 @ 09:40:30 Player: Rougue Result: Self-destructed Performance ------------- Evolutions (3) 1500 Regions Visited (6) 1200 Robots Destroyed (64) 320 Value Destroyed (1696) 1696 Prototype IDs (29) 580 Alien Tech Used (0) 0 Bonus (511) 511 TOTAL SCORE: 5807 Bonus ------- High Alert Combat Kills 178 Follower Combat Kills 33 Aligned with FarCom 300 Cogmind --------- Core Integrity 666/700 Matter 8/300 Energy 455/455 System Corruption 4% Temperature Cool (64) Movement Flying (27) Location -7/Factory Parts ------- > --- POWER (2) -------- Heavy Ion Engine Deuterium Engine > --- PROPULSION (5) --- Flight Unit Flight Unit VTOL Module Xenon Bombardment Thruster Xenon Bombardment Thruster > --- UTILITY (4) ------ Small Storage Unit Weight Redist. System Improved Signal Interpreter Hacking Suite > --- WEAPON (2) ------- Missile Launcher > --- INVENTORY (8) ---- Nuclear Core Improved Deuterium Engine Xenon Bombardment Thruster Cooling System Transport Network Coupler Propulsion Shielding Latent Energy Streamer Precision Grenade Launcher Peak State ------------ > --- POWER ------------ Light Angular Momentum Engine > --- PROPULSION ------- Armored Huge Wheel Armored Huge Wheel > --- UTILITY ---------- High-capacity Storage Unit Experimental Sensor Array Signal Interpreter > --- WEAPON ----------- Latent Energy Streamer Light Cannon > --- INVENTORY -------- Light Nuclear Core Light Nuclear Core Armored Huge Wheel Flight Unit Flight Unit Flight Unit Improved Heat Sink Improved Heat Sink Small Storage Unit Large Storage Unit Weight Redist. System Sensor Array Seismic Detector Transport Network Coupler Assault Rifle Light Cannon Grenade Launcher Rocket Launcher [Rating: 46] Favorites ----------- Power Ion Engine Engine Ion Engine Power Core Nuclear Core Propulsion Light Treads Treads Light Treads Wheel Armored Huge Wheel Flight Unit Flight Unit Utility Signal Interpreter Device Particle Charger Storage High-capacity Storage Unit Processor Signal Interpreter Hackware Hacking Suite Weapon Light Cannon Energy Gun Improved EM Shotgun Energy Cannon Latent Energy Streamer Ballistic Gun Assault Rifle Ballistic Cannon Light Cannon Launcher Grenade Launcher Build | -11 -10 -10 -10 -9 -8 -7 ------- Run | Yrd Mat Min Exi Min Mat Fac Slots Evolved 6 | . . . . . 4 2 Power 1 | . . . . . . 1 Propulsion 3 | . . . . . 3 . Utility 2 | . . . . . 1 1 Weapon . | . . . . . . . Parts Attached 77 | 7 8 10 1 2 38 11 Power 11 | 1 . 1 . 1 4 4 Engine 10 | 1 . 1 . 1 3 4 Core 1 | . . . . . 1 . Reactor . | . . . . . . . Propulsion 19 | 2 1 3 . . 12 1 Treads 6 | 2 1 3 . . . . Leg . | . . . . . . . Wheel 2 | . . . . . 2 . Hover . | . . . . . . . Flight 11 | . . . . . 10 1 Utility 16 | 2 2 2 1 . 6 3 Device 7 | 1 . . . . 3 3 Storage 6 | 1 1 2 1 . 1 . Processor 2 | . 1 . . . 1 . Hackware 1 | . . . . . 1 . Protection . | . . . . . . . Artifact . | . . . . . . . Weapon 31 | 2 5 4 . 1 16 3 Energy Gun 1 | . . . . . 1 . Energy Cannon 7 | . . . . 1 5 1 Ballistic Gun 8 | 2 3 . . . 3 . Ballistic Cannon 5 | . 2 3 . . . . Launcher 10 | . . 1 . . 7 2 Special Weapon . | . . . . . . . Impact Weapon . | . . . . . . . Slashing Weapon . | . . . . . . . Piercing Weapon . | . . . . . . . Special Melee Weapon . | . . . . . . . Unidentified Prototypes 4 | . . . . . 3 1 Parts Lost 5 | . 1 3 . . 1 . Power 1 | . . 1 . . . . Propulsion 2 | . . 1 . . 1 . Utility 1 | . 1 . . . . . Weapon 1 | . . 1 . . . . Highest Loss Streak 3 | . 1 3 . . 1 . To Critical Strikes . | . . . . . . . Average Slot Usage (%) 93 | . 96 98 100 100 73 90 Engine 12 | . 14 13 14 14 7 13 Treads 21 | . 28 27 28 28 . . Wheel 2 | . . . . . 15 . Flight 2 | . . . . . 5 38 Device 1 | . 2 . . . 2 7 Storage 12 | . 14 14 14 14 9 7 Processor 11 | . 8 14 14 14 9 7 Hackware 1 | . . . . . 6 7 Energy Cannon 4 | . . . . 10 3 . Ballistic Gun 4 | . 20 1 . . 4 . Ballistic Cannon 13 | . 7 21 28 17 4 . Launcher 1 | . . 4 . . 3 6 Naked Turns . | . . . . . . . Heaviest Build 63 | 15 31 31 51 62 63 28 Greatest Support 56 | 40 40 40 40 40 56 32 Greatest Overweight (x) 8 | . . 1 1 1 8 . Average Overweight (x) . | . . . . 1 . . Largest Inventory Capacity 20 | 8 15 20 20 20 20 8 Average Capacity 17 | 6 14 15 17 20 18 8 Most Carried 20 | 1 15 15 16 20 20 8 Average Carried 15 | . 11 14 15 18 18 7 Final Capacity 20 | 8 15 15 20 20 8 8 Final Carried 20 | 1 15 15 16 20 8 8 Class Distribution -------------------- 92% | Mutant 7% | Sprinter Dominant Class ---------------- Mutant | -10/Materials Mutant | -10/Mines Mutant | -10/Exiles Mutant | -9/Mines Mutant | -8/Materials Sprinter | -7/Factory Resources | -11 -10 -10 -10 -9 -8 -7 ----------- Run | Yrd Mat Min Exi Min Mat Fac Matter Collected 1668 | 288 188 333 . 288 496 75 Remotely 107 | 71 36 . . . . . Salvage Created 1885 | 84 298 176 . 66 929 332 Parts 139 | 4 28 11 . 5 67 24 Haulers Intercepted 5 | . 2 . . . 1 2 Recyclers Shooed 2 | . . . . . 2 . Parts Field Recycled . | . . . . . . . Retrieved Matter . | . . . . . . . Parts Self-Destructed . | . . . . . . . Prevented . | . . . . . . . Kills | -11 -10 -10 -10 -9 -8 -7 ------- Run | Yrd Mat Min Exi Min Mat Fac Combat Hostiles Destroyed 41 | . 10 7 . 5 17 2 Guns 12 | . 10 . . . 2 . Cannons 11 | . . 7 . 4 . . AOE 18 | . . . . 1 15 2 Classes Destroyed 12 | 1 4 . . . 5 2 Worker 6 | . . . . . . 6 Builder 5 | . . . . . 3 2 Tunneler 3 | . 1 . . . 2 . Hauler 5 | . 2 . . . 1 2 Recycler 3 | 1 . . . . 1 1 Watcher 1 | . . . . . 1 . Swarmer 18 | . 9 2 . 4 3 . Grunt 16 | . 1 5 . 1 9 . Brawler 1 | . . . . . 1 . Sentry 4 | . . . . . 3 1 Hunter 1 | . . . . . . 1 Heavy 1 | . . . . . 1 . Best Kill Streak 9 | 1 6 2 . 4 8 9 Combat Bots Only 7 | . 6 2 . 4 7 1 Max Kills in Single Turn 4 | 1 1 1 . 1 4 4 Gunslinging . | . . . . . . . Exploded 3 | . . . . 1 3 1 Melee . | . . . . . . . Uniques/NPCs Destroyed . | . . . . . . . Combat | -11 -10 -10 -10 -9 -8 -7 -------- Run | Yrd Mat Min Exi Min Mat Fac Hostile Shots Fired 182 | . 48 53 . 19 36 26 Missed 49 | . 6 11 . 2 13 17 Damage Taken 1534 | . 349 506 . 159 451 69 Core 217 | . 63 75 . 10 35 34 Absorbed by Shields . | . . . . . . . Core Remaining (%) 77 | 100 . . . 40 93 . Volleys Fired 107 | 4 37 21 . 8 22 15 Largest 2 | 2 2 2 . 2 2 1 Hottest 105 | 40 70 70 . 95 105 60 Shots Fired 190 | 6 75 45 . 16 33 15 Gun 104 | 6 69 18 . . 11 . Cannon 60 | . 6 27 . 16 9 2 Launcher 26 | . . . . . 13 13 Special . | . . . . . . . Kinetic 144 | 6 75 45 . 15 3 . Thermal . | . . . . . . . Explosive 26 | . . . . . 13 13 Electromagnetic 20 | . . . . 1 17 2 Robot Hit Streak 11 | 6 7 11 . 5 8 6 Robot Miss Streak 5 | . 5 3 . 2 4 2 Penetration Max . | . . . . . . . Secondary Targets 1 | . 1 . . . . . Max Gunslinging Chain 1 | . 1 . . . . . Shots Hit Robots 111 | 6 41 28 . 7 20 9 Core Hits 102 | 2 16 11 . 5 43 25 Critical Kills . | . . . . . . . Critical Parts Destroyed . | . . . . . . . Critical Strikes 1 | . . 1 . . . . Blast 1 | . . 1 . . . . Melee Attacks . | . . . . . . . Impact . | . . . . . . . Slashing . | . . . . . . . Piercing . | . . . . . . . Sneak Attacks . | . . . . . . . Combat Hostiles . | . . . . . . . Follow-up Attacks . | . . . . . . . Damage Inflicted 4566 | 77 520 422 . 220 2342 985 Guns 837 | 77 485 124 . . 151 . Cannons 531 | . 35 298 . 143 50 5 Explosions 3198 | . . . . 77 2141 980 Melee . | . . . . . . . Ramming . | . . . . . . . Kinetic 1188 | 77 520 422 . 143 26 . Thermal 386 | . . . . . 349 37 Explosive 1196 | . . . . . 591 605 Electromagnetic 1796 | . . . . 77 1376 343 Impact . | . . . . . . . Slashing . | . . . . . . . Piercing . | . . . . . . . Highest Corruption 19 | . 8 8 8 10 19 4 Average Corruption 8 | . 4 8 8 9 10 3 Corruption Purged . | . . . . . . . Corruption Blocked . | . . . . . . . Effects 123 | . 14 22 14 58 13 2 Message Errors 29 | . 4 5 2 13 4 1 Matter Fused 32 | . 2 4 5 17 3 1 Heat Flow Errors 11 | . 1 3 1 5 1 . Energy Discharges 17 | . . 2 5 9 1 . Parts Rejected 3 | . 1 2 . . . . Parts Fused 1 | . 1 . . . . . Data Loss (minor) 14 | . 3 1 . 9 1 . Data Loss (major) 7 | . 1 1 1 3 1 . Misfires 4 | . 1 3 . . . . Alerts 3 | . . 1 . 2 . . Misdirections 2 | . . . . . 2 . Overload Shots . | . . . . . . . Overflow Damage 64 | . . . . . 41 23 Projectiles . | . . . . . . . Explosions 64 | . . . . . 41 23 Melee . | . . . . . . . Knockbacks 6 | . 1 4 . 1 . . Impact . | . . . . . . . Kinetic 6 | . 1 4 . 1 . . Secondary . | . . . . . . . Self-Inflicted Damage 56 | . . . . . 56 . Shots 2 | . . . . . 2 . Rammed . | . . . . . . . Targets Rammed . | . . . . . . . Kicked . | . . . . . . . Crushed . | . . . . . . . Highest Temperature 257 | . 170 257 92 227 85 207 Average Temperature 67 | . 53 57 53 66 21 86 Received Heat Transfer 444 | . 12 249 . 24 135 24 Effects 3 | . . . . . . 3 Interference 3 | . . . . . . 3 Siege Activations . | . . . . . . . Robots Corrupted . | . . . . . . . Combat Hostiles . | . . . . . . . Parts Fried 5 | . . . . . 3 2 Impact Corruptions . | . . . . . . . Robots Melted . | . . . . . . . Combat Hostiles . | . . . . . . . Parts Melted . | . . . . . . . Heat Transferred 550 | . . . . . 500 50 Parts Sabotaged . | . . . . . . . Parts Stolen . | . . . . . . . Parts Stripped . | . . . . . . . Power Chain Reactions 1 | . . . . . 1 . Latent Energy Used 1533 | . . . . 119 1196 218 LE Corruption 25 | . . . . 2 19 4 Alert | -11 -10 -10 -10 -9 -8 -7 ------- Run | Yrd Mat Min Exi Min Mat Fac Peak Influence 1100 | 5 231 120 . 91 809 1100 Initial 367 | . 3 5 . . . 367 Average 112 | 1 81 61 . 11 249 599 Maximum Alert Level 4 | . 1 . . . 3 4 Low Security (%) 85 | 100 98 100 . 100 58 . Level 1 3 | . 1 . . . 8 19 Level 2 7 | . . . . . 24 48 Level 3 3 | . . . . . 8 31 Level 4 . | . . . . . . . Level 5 . | . . . . . . . High Security . | . . . . . . . Max Security . | . . . . . . . Squads Dispatched 4 | . 1 . . . 1 2 Investigation . | . . . . . . . Extermination . | . . . . . . . Reinforcement 4 | . 1 . . . 1 2 Assault . | . . . . . . . Garrison . | . . . . . . . Intercept . | . . . . . . . Searches Triggered . | . . . . . . . Construction Impeded 2 | . . . . . 1 1 Haulers Reinforced . | . . . . . . . Active Scanning Responses . | . . . . . . . Cargo Convoy Interrupts . | . . . . . . . Stealth | -11 -10 -10 -10 -9 -8 -7 --------- Run | Yrd Mat Min Exi Min Mat Fac Distress Signals 2 | . . . . . . 2 Communications Jammed . | . . . . . . . Distress Signals . | . . . . . . . Times Spotted 73 | . 18 8 . 5 31 11 Peak Tracking Total 6 | . 6 3 . 4 5 5 Tactical Retreats 4 | . . 1 . . 2 1 Traps | -11 -10 -10 -10 -9 -8 -7 ------- Run | Yrd Mat Min Exi Min Mat Fac Traps Triggered 5 | . 5 . . . . . Indirectly . | . . . . . . . Trap Hack Attempts . | . . . . . . . Triggered . | . . . . . . . Disarmed . | . . . . . . . Reprogrammed . | . . . . . . . Reused . | . . . . . . . Traps Extracted . | . . . . . . . Installed . | . . . . . . . Triggered 2 | . . . . 2 . . Machines | -11 -10 -10 -10 -9 -8 -7 ---------- Run | Yrd Mat Min Exi Min Mat Fac Machines Disabled 38 | . . . . . 12 26 Max in Single Turn 8 | . . . . . 4 8 Machines Repaired . | . . . . . . . Machines Dismantled . | . . . . . . . Machines Sabotaged . | . . . . . . . Overloaded Fab Kills . | . . . . . . . Hacking | -11 -10 -10 -10 -9 -8 -7 --------- Run | Yrd Mat Min Exi Min Mat Fac Machines Accessed 22 | . 9 . 1 . 6 6 Terminals 17 | . 7 . . . 5 5 Fabricators . | . . . . . . . Repair Stations . | . . . . . . . Recycling Units 2 | . 2 . . . . . Scanalyzers 1 | . . . . . 1 . Garrison Access 1 | . . . . . . 1 Total Hacks 46 | . 18 . 1 . 13 14 Successful 19 | . 9 . 1 . 6 3 Failed 27 | . 9 . . . 7 11 Catastrophic 5 | . 2 . . . 2 1 Database Lockouts . | . . . . . . . Manual 14 | . 3 . 1 . 9 1 Terminals 38 | . 15 . . . 11 12 Fabricators . | . . . . . . . Repair Stations . | . . . . . . . Recycling Units 3 | . 3 . . . . . Scanalyzers 2 | . . . . . 2 . Garrison Access 2 | . . . . . . 2 Terminal Hacks 13 | . 7 . 1 . 3 2 Record 1 | . . . . . 1 . Robot Analysis 1 | . . . . . . 1 Prototype ID Bank 1 | . 1 . . . . . Alert Level 3 | . 1 . . . 1 1 Locate Traps 1 | . 1 . . . . . Hauler Manifests 2 | . 1 . . . 1 . Zone Layout 3 | . 3 . . . . . Derelict Proto ID Bank 1 | . . . 1 . . . Fabricator Hacks . | . . . . . . . Repair Station Hacks . | . . . . . . . Recycling Unit Hacks 2 | . 2 . . . . . Report Inventory 2 | . 2 . . . . . Scanalyzer 2 | . . . . . 2 . Insert Component 1 | . . . . . 1 . Analyze 1 | . . . . . 1 . Garrison Access Hacks 1 | . . . . . . 1 Coupler Status 1 | . . . . . . 1 Unauthorized Hacks 1 | . . . . . 1 . Terminals 1 | . . . . . 1 . Assimilate 1 | . . . . . 1 . Fabricators . | . . . . . . . Repair Stations . | . . . . . . . Recycling Units . | . . . . . . . Scanalyzers . | . . . . . . . Garrison Access . | . . . . . . . Data Cores Recovered . | . . . . . . . Used . | . . . . . . . Hacking Detections 19 | . 8 . . . 5 6 Full Trace Events . | . . . . . . . Feedback Events . | . . . . . . . Feedback Blocked . | . . . . . . . Robot Schematics Acquired . | . . . . . . . Robots Built . | . . . . . . . Authchips . | . . . . . . . Time . | . . . . . . . Total Robot Build Rating . | . . . . . . . Part Schematics Acquired 1 | . . . . . 1 . Parts Built . | . . . . . . . Authchips . | . . . . . . . Time . | . . . . . . . Total Part Build Rating . | . . . . . . . Parts Repaired . | . . . . . . . Time . | . . . . . . . Parts Recycled . | . . . . . . . Recycled Matter . | . . . . . . . Retrieved Matter . | . . . . . . . Retrieved Components . | . . . . . . . Parts Scanalyzed 1 | . . . . . 1 . Part Schematics Acquired 1 | . . . . . 1 . Parts Damaged . | . . . . . . . Bothacking | -11 -10 -10 -10 -9 -8 -7 ------------ Run | Yrd Mat Min Exi Min Mat Fac Used RIF Installer . | . . . . . . . Robots Hacked . | . . . . . . . Non-combat . | . . . . . . . Combat . | . . . . . . . Robot Hacks Applied . | . . . . . . . Relay Couplers Released . | . . . . . . . Fabnet Peak Effective % . | . . . . . . . Robots Rewired . | . . . . . . . Allies Hacked . | . . . . . . . Hacks Repelled . | . . . . . . . Allies | -11 -10 -10 -10 -9 -8 -7 -------- Run | Yrd Mat Min Exi Min Mat Fac Total Allies 4 | . . . . 3 1 . Largest Group 4 | . . . . 3 4 . Highest-Rated Group 66 | . . . . 40 66 . Highest-Rated Ally 26 | . . . . 16 26 . Total Orders 5 | . . . . . 5 . STAY 3 | . . . . . 3 . FOLLOW 2 | . . . . . 2 . Ally Attacks 20 | . . . . . 20 . Total Damage 406 | . . . . . 406 . Kills 2 | . . . . . 2 . Allies Corrupted . | . . . . . . . Allies Melted . | . . . . . . . Intel | -11 -10 -10 -10 -9 -8 -7 ------- Run | Yrd Mat Min Exi Min Mat Fac Robot Analysis Total 1 | . . . . . . 1 Derelict Logs Recovered 3 | . . 2 . 1 . . Drone Launches . | . . . . . . . Drone Recoveries . | . . . . . . . Exploration | -11 -10 -10 -10 -9 -8 -7 ------------- Run | Yrd Mat Min Exi Min Mat Fac Turns Passed 4774 | 74 917 559 444 1667 878 235 Spaces Moved 2863 | 34 466 282 222 659 624 576 Core 2 | 1 . . . . 1 . Treads 1666 | 33 466 282 222 659 4 . Legs . | . . . . . . . Wheels 432 | . . . . . 432 . Hover . | . . . . . . . Flight 763 | . . . . . 187 576 Fastest Speed 27 | 50 160 160 160 240 27 27 Average Speed 138 | 156 160 162 198 240 87 27 Slowest Speed 450 | 160 160 240 240 240 450 27 Overloaded Moves . | . . . . . . . Propulsion Burnouts . | . . . . . . . Robots Hopped 1 | . . . . . 1 . Cave-ins Triggered . | . . . . . . . Exploration Rate (%) 54 | 4 97 55 43 95 67 19 Regions Visited 6 Branch Regions 3 Pre-discovered Areas 1 | . . 1 . . . . Known Exits Taken 5 | . 1 1 1 1 1 . Unknown Exits Taken 1 | 1 . . . . . . Scrap Searched 3 | . . 1 . 2 . . Spaces Dug 41 | . . . . 9 24 8 Terrain Destroyed 316 | . . . . 9 236 71 Melee . | . . . . . . . Projectile 1 | . . . . 1 . . AOE 315 | . . . . 8 236 71 Terrain Rammed . | . . . . . . . Walls Destroyed . | . . . . . . . Machines Disabled . | . . . . . . . Actions | -11 -10 -10 -10 -9 -8 -7 --------- Run | Yrd Mat Min Exi Min Mat Fac Total 3460 | 45 563 341 225 730 919 637 Wait 328 | . 29 23 . 53 193 30 Move 2855 | 33 465 281 221 658 621 576 Hop 1 | . . . . . 1 . Pick Up 48 | 1 18 4 2 6 16 1 Fast Attach 28 | 7 3 2 . 1 13 2 Attach 10 | . . 3 . . 3 4 Detach 3 | . . . . . 1 2 Swap 39 | . 5 5 1 1 22 5 Drop 41 | . 6 2 1 3 27 2 Fire 107 | 4 37 21 . 8 22 15 Melee . | . . . . . . . Ram . | . . . . . . . Kick . | . . . . . . . Crush . | . . . . . . . Escape Stasis . | . . . . . . . Rewire . | . . . . . . . Trap . | . . . . . . . Miscellaneous . | . . . . . . . Route ------- -11/Scrapyard -10/Materials (discovered 5 exits: *Mat x3 / *Min x2) -10/Mines (discovered 2 exits: *Mat / *Exi) -10/Exiles (discovered 2 exits: *Min x2) -9/Mines (discovered 2 exits: *Mat x2) -8/Materials (discovered 2 exits: *Fac x2) -7/Factory (discovered 1 exit: Sto) History --------- Turn | Location | Event 17 | -11/Scrapyard | Discovered new exit (range 16) 75 | -11/Scrapyard | Entered Materials 185 | -10/Materials | Discovered new exit (range 20) 316 | -10/Materials | Build established: Mutant 443 | -10/Materials | Identified exit to Mines 520 | -10/Materials | Discovered exit to Mines (range 6) 687 | -10/Materials | Discovered new exit (range 9) 696 | -10/Materials | Identified exit to Materials 794 | -10/Materials | Discovered exit to Materials (range 14) 909 | -10/Materials | Discovered exit to Materials (range 16) 992 | -10/Materials | Entered Mines 1025 | -10/Mines | Core integrity fell below 50% 1045 | -10/Mines | Assembled infested the area 1047 | -10/Mines | Lost 3 parts (1p1n1w) 1159 | -10/Mines | Discovered exit to Materials (range 8) 1270 | -10/Mines | Received a Rocket Launcher from a helpful Derelict 1368 | -10/Mines | Learned location of Zion (-6) 1429 | -10/Mines | Discovered new exit (range 5) 1471 | -10/Mines | Found a hidden stash of uninstalled traps 1549 | -10/Mines | Identified exit to Exiles 1551 | -10/Mines | Entered Exiles 1552 | -10/Exiles | Identified exit to Mines 1590 | -10/Exiles | Met 8R-AWN 1617 | -10/Exiles | Met EX-HEX 1662 | -10/Exiles | Met EX-BIN 1681 | -10/Exiles | Aligned with FarCom system 1683 | -10/Exiles | Given EX-Vault access code 1719 | -10/Exiles | Opened EX-Vault 1739 | -10/Exiles | Found Latent Energy Streamer 1793 | -10/Exiles | Warned to stay clear of 0b10 Research branches 1995 | -10/Exiles | Left Exiles lab with Latent Energy Streamer 1995 | -10/Exiles | Entered Mines 2026 | -9/Mines | Met a Derelict bent on vengeance 2058 | -9/Mines | Discovered new exit (range 6) 2265 | -9/Mines | Found a damaged Exp. Sensor Array with a note attached 2270 | -9/Mines | Found Prototype Device 2338 | -9/Mines | Discovered new exit (range 8) 2639 | -9/Mines | System corruption reached 10% 3240 | -9/Mines | Assisted by bots powering up and referring to "LRC-V3" 3660 | -9/Mines | Identified exit to Materials 3662 | -9/Mines | Entered Materials 3662 | -8/Materials | Accompanied by 3 allies 3662 | -8/Materials | Evolved 4 slots: Propulsion x3, Utility x1 3691 | -8/Materials | Identified Exp. Sensor Array 4238 | -8/Materials | Lost 3 allies 4292 | -8/Materials | Destroyed 7 combat bots 4316 | -8/Materials | System corruption reached 10% 4326 | -8/Materials | Discovered new exit (range 12) 4513 | -8/Materials | Discovered new exit (range 16) 4539 | -8/Materials | Identified exit to Factory 4540 | -8/Materials | Entered Factory 4540 | -7/Factory | Evolved 2 slots: Power x1, Utility x1 4541 | -7/Factory | Identified exit to Storage 4714 | -7/Factory | Build established: Sprinter 4775 | -7/Factory | Self-destructed Last Messages --------------- 04750_ U-05 Engineer lays Concrete. 04751_ U-05 Engineer builds a Wall. 04751_ U-05 Engineer lays Concrete. 04751_ K-01 Serf collects debris. 04752_ Overheating: System interference. 04752_ Missile Launcher temporarily disabled. 04752_ Imp. Signal Interpreter temporarily disabled. 04753_ U-05 Engineer lays Concrete. 04754_ K-01 Serf collects debris. 04755_ U-05 Engineer lays Concrete. 04757_ W-25 Informer sends out distress signal. 04757_ K-01 Serf collects debris. 04757_ U-05 Engineer lays Concrete. 04763_ System corrupted: Matter fused (-8). 04769_ Slug penetrates Wall. 04771_ K-01 Serf collects debris. 04772_ U-05 Engineer lays Concrete. 04774_ K-01 Serf collects debris. Map ----- +----------------------------------------------------+ | % #???????????????????????? | | """" *=]] ""??????????????????????? | | """" ]%] """?????????????????????? | | """" ]] | "F"?????????????????????? | | """" %== "?????????????????????? | | =% =% ""?????????????????????? | | """" # * ""?????????????????????? | | """" # #???????????????????????? | | """" # #???????????????????????? | | """" # #???????????????????????? | | # #???????????????????????? | | "T" # #???????????????????????? | | ######## #???????????????????????? | | ???????# ##??????????????????????? | | ???????# w u #??????????????????????? | | ???????# #??????????????????????? | | ???????# #??????????????????????? | | ???????# k #??????????????????????? | | ???????# u ##############?????????? | | ???????# # #?????????? | | ???????# # #?????????? | | ???????# # #?????????? | | ?????####### ## w # #?????????? | | ?????# [ # # #?????????? | | ?????# # # #?????????? | | ?????# # @/ #?????????? | | ?????# # # #?????????? | | ?????# """ """ "# # #?????????? | | ?????# """ """ = "# = = #?????????? | | ?????# """ """ "# #?????????? | | ?????# T# h #?????????? | | ?????# """ """ "# #############?????????? | | ?????? """ """ "# ?????????????????????? | | ????????"" """ "# ?????????????????????? | | ??????? # ?????????????????????? | | ????????########### ##?????????????????????? | | ??????????????????# #??????????????????????? | | ??????????????????# k #??????????????????????? | | ??????????????????# u ???????????????????????? | | ????????????????????? ???????????????????????? | | ??????????????????????? ???????????????????????? | | ?????????????????????????????????????????????????? | | ?????????????????????????????????????????????????? | | ?????????????????????????????????????????????????? | | ?????????????????????????????????????????????????? | | ?????????????????????????????????????????????????? | | ?????????????????????????????????????????????????? | | ?????????????????????????????????????????????????? | | ?????????????????????????????????????????????????? | | ?????????????????????????????????????????????????? | +----------------------------------------------------+ Best States ------------- Heat Dissipation 56 Energy Generation 23 Energy Capacity 455 Matter Stores 300 Matter Capacity 300 Sight Range 16 Terrain Scan Density 10 Additional Mass Support 6 Evasion (%) 64 Recoil Reduction 2 Particle Charging 15 Offensive Hacking 10 Item Schematics ----------------- VTOL Module | -8/Materials | Scanalyzed Robot Schematics ------------------ None Fabricated ------------ Nothing Alien Tech Used ----------------- None Achievements -------------- None Challenges ------------ None Game ------ Seed DisruptorArmoredClaw Manual? 0 Play Time 01:24:21 Cumulative 32.2 hours Start 2024.04.02 @ 09:09:30 End 2024.04.04 @ 09:40:30 Sessions 8 Manual Loads 0 Difficulty Rogue Special Mode None Game No. 64 Rogue 64 Adventurer 0 Explorer 0 Win Type - Total 0 Types 0/0/0/0/0/0/0/0/0 Lore% 22 Gallery% 22 Achievement% 22 Wizard Run 0 Options --------- Layout 1 ASCII 0 Keyboard 0 Movement Mouse Keybinds 0 Fullscreen 2 Font 24/Smallcaps Map View 50x35 Zoom Use 0% Tactical HUD 1 Map Filters NONE Filters NONE Steam 1 RUN: b32288c1-490e-4d62-93ca-b27a428ae47a